fUST/lending_fUST_20250129
["ID","MTS","AMOUNT","RATE_DAILY","PERIOD"]
[350776926,1738121468697,-151.0,0.000189,2]
[350776927,1738121468707,-3735.16643297,0.000189,2]
[350776928,1738121468716,-1647.58793471,0.00018904,2]
[350776929,1738121468727,-1019.28382268,0.00018922,2]
[350776930,1738121468736,-1119.72,0.00018953,2]
[350776931,1738121468748,-682.63,0.00018953,2]
[350776932,1738121468758,-515.32,0.00018953,2]
[350776933,1738121468769,-500.0,0.00018953,2]
[350776934,1738121468778,-1442.23,0.00018954,2]
[350776935,1738121468789,-2591.22,0.00018954,2]
[350776936,1738121468799,-1316.88,0.00018954,2]
[350776937,1738121468809,-1097.65,0.00018954,2]
[350776938,1738121468818,-668.88,0.00018954,2]
[350776939,1738121468828,-542.09,0.00018954,2]
[350776940,1738121468838,-500.0,0.00018954,2]
[350776941,1738121468849,-739.71,0.00018954,2]
[350776942,1738121468859,-500.0,0.00018954,2]
[350776943,1738121468868,-1088.07,0.00018954,2]
[350776944,1738121468877,-2092.2,0.00018954,2]
[350776945,1738121468886,-500.0,0.00018954,2]
[350776946,1738121469011,-708.34,0.00018954,2]
[350776947,1738121469021,-538.47,0.00018954,2]
[350776948,1738121469031,-500.0,0.00018954,2]
[350776949,1738121469040,-500.0,0.00018954,2]
[350776950,1738121469050,-3785.03,0.00018954,2]
[350776951,1738121469059,-463.23863804,0.00018954,2]
[350776952,1738121469068,-153.0,0.00018998,2]
[350776953,1738121469077,-162.0,0.00018998,2]
[350776954,1738121469087,-153.0,0.00018998,2]
[350776955,1738121469097,-162.0,0.00018998,2]
[350776956,1738121469107,-153.0,0.00018998,2]
[350776957,1738121469116,-162.0,0.00018998,2]
[350776958,1738121469125,-153.0,0.00018998,2]
[350776959,1738121469135,-162.0,0.00018998,2]
[350776960,1738121469144,-153.0,0.00018998,2]
[350776961,1738121469153,-162.0,0.00018998,2]
[350776962,1738121469163,-153.0,0.00018998,2]
[350776963,1738121469172,-162.0,0.00018998,2]
[350776964,1738121469181,-153.0,0.00018998,2]
[350776965,1738121469191,-158.0,0.00018998,2]
[350776966,1738121469201,-163.64,0.00018998,2]
[350776967,1738121469211,-8039.62,0.00019,2]
[350776968,1738121469219,-24501.32574939,0.00019,2]
[350776969,1738121469228,-302.8788636,0.00019,2]
[350776970,1738121469238,-302.8788636,0.00019,2]
[350776971,1738121469247,-2634.39,0.00019033,2]
[350776972,1738121469256,-705.11,0.00019033,2]
[350776973,1738121469266,-1510.8,0.00019033,2]
[350776974,1738121469276,-5522.38,0.00019033,2]
[350776975,1738121469286,-500.0,0.00019033,2]
[350776976,1738121469296,-587.0,0.00019076,2]
[350776977,1738121469306,-1119.72,0.0001909,2]
[350776978,1738121469316,-682.63,0.0001909,2]
[350776979,1738121469326,-515.32,0.0001909,2]
[350776980,1738121469336,-1442.23,0.00019091,2]
[350776981,1738121469346,-2591.22,0.00019091,2]
[350776982,1738121469356,-1316.88,0.00019091,2]
[350776983,1738121469366,-1097.65,0.00019091,2]
[350776984,1738121469376,-668.88,0.00019091,2]
[350776985,1738121469386,-542.09,0.00019091,2]
[350776986,1738121469395,-500.0,0.00019091,2]
[350776987,1738121469406,-739.71,0.00019091,2]
[350776988,1738121469415,-500.0,0.00019091,2]
[350776989,1738121469425,-1088.07,0.00019091,2]
[350776990,1738121469435,-2092.2,0.00019091,2]
[350776991,1738121469444,-500.0,0.00019091,2]
[350776992,1738121469454,-708.34,0.00019091,2]
[350776993,1738121469464,-538.47,0.00019091,2]
[350776994,1738121469474,-500.0,0.00019091,2]
[350776995,1738121469484,-500.0,0.00019091,2]
[350776996,1738121469493,-3785.03,0.00019091,2]
[350776997,1738121469503,-500.0,0.00019107,2]
[350776998,1738121469513,-500.0,0.00019107,2]
[350776999,1738121469523,-500.0,0.00019107,2]
[350777000,1738121469536,-500.0,0.00019107,2]
[350777001,1738121469547,-2634.39,0.0001917,2]
[350777002,1738121469557,-705.11,0.0001917,2]
[350777003,1738121469567,-1510.8,0.0001917,2]
[350777004,1738121469576,-5522.38,0.0001917,2]
[350777005,1738121469588,-300.71,0.0001917,2]
[350777006,1738121469598,-500.0,0.00019178,2]
[350777007,1738121469607,-500.0,0.00019178,2]
[350777008,1738121469617,-242.73218616,0.00019178,2]
[350777009,1738121469627,-500.0,0.00019178,2]
[350777010,1738121469636,-544.87054827,0.00019178,2]
[350777011,1738121469646,-164.799575,0.00019178,2]
[350777012,1738121469655,-178.688357,0.00019178,2]
[350777013,1738121469665,-1000.0,0.00019184,2]
[350777014,1738121469675,-302.8788636,0.0001919,2]
[350777015,1738121469685,-302.8788636,0.0001919,2]
[350777016,1738121469694,-151.0,0.000192,2]
[350777017,1738121469703,-151.0,0.000192,2]
[350777018,1738121469714,-135.37584207,0.00019227,2]
[350777019,1738121469883,-500.0,0.00018269,2]
[350777020,1738121469893,-984.34415793,0.00019227,2]
[350777021,1738121469902,-682.63,0.00019227,2]
[350777022,1738121469912,-515.32,0.00019227,2]
[350777023,1738121469921,-1442.23,0.00019228,2]
[350777024,1738121469930,-2591.22,0.00019228,2]
[350777025,1738121469940,-1316.88,0.00019228,2]
[350777026,1738121469949,-1097.65,0.00019228,2]
[350777027,1738121469959,-668.88,0.00019228,2]
[350777028,1738121469969,-542.09,0.00019228,2]
[350777029,1738121469979,-512.35,0.00019228,2]
[350777030,1738121469988,-739.71,0.00019228,2]
[350777031,1738121469997,-500.0,0.00019228,2]
[350777032,1738121470006,-1088.07,0.00019228,2]
[350777033,1738121470016,-2092.2,0.00019228,2]
[350777034,1738121470025,-500.0,0.00019228,2]
[350777035,1738121470034,-708.34,0.00019228,2]
[350777036,1738121470044,-538.47,0.00019228,2]
[350777037,1738121470053,-500.0,0.00019228,2]
[350777038,1738121470062,-500.0,0.00019228,2]
[350777039,1738121470071,-3785.03,0.00019228,2]
[350777040,1738121470080,-136.05703957,0.00019268,2]
[350777041,1738121470094,-4683.88408242,0.00019268,2]
[350777042,1738121470105,-978.75395275,0.00019268,2]
[350777043,1738121470116,-2489.515304,0.00019268,2]
[350777044,1738121470127,-773.5743532,0.00019268,2]
[350777045,1738121470138,-413.300005,0.00019268,2]
[350777046,1738121470149,-575.6874976,0.00019268,2]
[350777047,1738121470249,-500.0,0.00018406,2]
[350777048,1738121470259,-500.0,0.00018543,2]
[350777049,1738121470269,-500.0,0.0001868,2]
[350777050,1738121470279,-500.0,0.00018817,2]
[350777051,1738121470288,-500.0,0.00018954,2]
[350777052,1738121470297,-500.0,0.00019091,2]
[350777053,1738121470306,-500.0,0.00019228,2]
[350777054,1738121470315,-122.08981369,0.00019268,2]
[350777055,1738121470325,-151.0,0.000193,5]
[350777056,1738121470335,-2634.39,0.00019307,2]
[350777057,1738121470345,-705.11,0.00019307,2]
[350777058,1738121470354,-1510.8,0.00019307,2]
[350777059,1738121470363,-2228.82053173,0.00019307,2]
[350777061,1738122029549,202.549686,0.00013973,2]
[350777066,1738122162915,763.56,0.00010959,2]
[350777082,1738122632834,-287.273098,0.0001531,2]
[350777083,1738122632844,-574.546196,0.00015465,2]
[350777084,1738122632854,-73.22480434,0.00015558,2]
[350777085,1738122632866,-226.77519566,0.00015558,2]
[350777086,1738122632877,-12971.9929223,0.00015559,2]
[350777087,1738122632886,-275.7291621,0.00015938,2]
[350777088,1738122632897,-277.5898377,0.00016438,2]
[350777089,1738122632907,-438.81849882,0.00016796,2]
[350777090,1738122632919,-500.0,0.00016895,2]
[350777091,1738122632929,-500.0,0.00016895,2]
[350777092,1738122632939,-526.47972781,0.00016895,2]
[350777093,1738122632949,-664.26,0.00016895,2]
[350777094,1738122632962,-500.0,0.00016895,2]
[350777095,1738122632972,-500.0,0.00016895,2]
[350777096,1738122632982,-500.0,0.00016895,2]
[350777097,1738122632993,-502.23,0.00016895,2]
[350777098,1738122633003,-500.0,0.00016896,2]
[350777099,1738122633013,-447.31551528,0.00016896,2]
[350777100,1738122633022,-500.0,0.00016896,2]
[350777101,1738122633032,-500.0,0.00016896,2]
[350777102,1738122633041,-500.0,0.00016896,2]
[350777103,1738122633051,-500.0,0.00016896,2]
[350777104,1738122633061,-513.9822047,0.00016896,2]
[350777106,1738122633070,-621.60920111,0.00016896,2]
[350777107,1738122633081,-500.0,0.00016896,2]
[350777109,1738122633091,-519.01459145,0.00016896,2]
[350777110,1738122633101,-500.0,0.00016896,2]
[350777112,1738122633111,-500.0,0.00016896,2]
[350777113,1738122633121,-885.61,0.00016896,2]
[350777115,1738122633134,-384.09684572,0.00016896,2]
[350777117,1738122633153,-353.75315428,0.00016896,2]
[350777119,1738122633165,-100.13747187,0.00016896,2]
[350777121,1738122633179,-399.86252813,0.00016896,2]
[350777122,1738122633188,-500.0,0.00016896,2]
[350777124,1738122633199,-500.0,0.00016896,2]
[350777126,1738122633209,-500.0,0.00016896,2]
[350777128,1738122633219,-500.0,0.00016896,2]
[350777129,1738122633228,-500.0,0.00016896,2]
[350777131,1738122633238,-520.38200952,0.00016896,2]
[350777133,1738122633248,-500.0,0.00016896,2]
[350777134,1738122633257,-500.0,0.00016896,2]
[350777136,1738122633267,-200.0,0.00016896,2]
[350777138,1738122633277,-1505.84,0.00016896,2]
[350777139,1738122633287,-500.0,0.00016896,2]
[350777140,1738122633297,-500.0,0.00016896,2]
[350777142,1738122633307,-500.0,0.00016896,2]
[350777143,1738122633317,-500.0,0.00016896,2]
[350777144,1738122633328,-500.0,0.00016896,2]
[350777146,1738122633338,-523.67,0.00016896,2]
[350777147,1738122633348,-163.96935042,0.00016896,2]
[350777241,1738122638685,-1025.83,0.00016895,2]
[350777243,1738122638696,-536.35064958,0.00016896,2]
[350777245,1738122638707,-500.0,0.00016896,2]
[350777247,1738122638718,-500.0,0.00016896,2]
[350777250,1738122638729,-500.0,0.00016896,2]
[350777252,1738122638742,-523.86231498,0.00016896,2]
[350777254,1738122638753,-500.0,0.00016896,2]
[350777256,1738122638765,-500.0,0.00016896,2]
[350777259,1738122638777,-536.79320156,0.00016896,2]
[350777261,1738122638787,-500.0,0.00016896,2]
[350777263,1738122638799,-500.0,0.00016896,2]
[350777265,1738122638810,-500.0,0.00016896,2]
[350777267,1738122638820,-500.0,0.00016896,2]
[350777269,1738122638830,-500.83037888,0.00016896,2]
[350777271,1738122638840,-500.0,0.00016896,2]
[350777273,1738122638851,-500.0,0.00016896,2]
[350777276,1738122638862,-500.0,0.00016896,2]
[350777278,1738122638874,-500.0,0.00016896,2]
[350777280,1738122638887,-500.0,0.00016896,2]
[350777282,1738122638898,-218.52653175,0.00016896,2]
[350777284,1738122638911,-500.0,0.00016896,2]
[350777287,1738122638925,-500.0,0.00016896,2]
[350777289,1738122638938,-500.0,0.00016896,2]
[350777291,1738122638949,-500.0,0.00016896,2]
[350777293,1738122638961,-500.0,0.00016896,2]
[350777295,1738122638973,-500.0,0.00016896,2]
[350777298,1738122638984,-505.53283008,0.00016896,2]
[350777300,1738122638997,-500.0,0.00016896,2]
[350777302,1738122639009,-507.51737332,0.00016896,2]
[350777304,1738122639020,-500.0,0.00016896,2]
[350777306,1738122639032,-501.44212101,0.00016896,2]
[350777308,1738122639044,-578.25,0.00016896,2]
[350777311,1738122639056,-500.0,0.00016896,2]
[350777313,1738122639068,-500.0,0.00016896,2]
[350777315,1738122639080,-500.0,0.00016896,2]
[350777317,1738122639092,-500.0,0.00016896,2]
[350777320,1738122639105,-1105.34,0.00016896,2]
[350777322,1738122639116,-500.0,0.00016896,2]
[350777324,1738122639127,-500.0,0.00016896,2]
[350777326,1738122639139,-500.0,0.00016896,2]
[350777328,1738122639149,-500.0,0.00016896,2]
[350777330,1738122639159,-500.0,0.00016896,2]
[350777332,1738122639169,-500.0,0.00016896,2]
[350777335,1738122639179,-500.0,0.00016896,2]
[350777337,1738122639189,-1435.43,0.00016896,2]
[350777339,1738122639202,-500.0,0.00016896,2]
[350777340,1738122639213,-500.0,0.00016896,2]
[350777343,1738122639224,-500.0,0.00016896,2]
[350777345,1738122639235,-1118.87,0.00016896,2]
[350777347,1738122639248,-500.0,0.00016896,2]
[350777349,1738122639261,-502.06901336,0.00016896,2]
[350777352,1738122639272,-500.0,0.00016896,2]
[350777354,1738122639283,-504.66805009,0.00016896,2]
[350777356,1738122639294,-500.0,0.00016896,2]
[350777358,1738122639304,-500.0,0.00016896,2]
[350777360,1738122639314,-500.0,0.00016896,2]
[350777362,1738122639324,-500.0,0.00016896,2]
[350777364,1738122639336,-500.0,0.00016896,2]
[350777367,1738122639347,-500.0,0.00016896,2]
[350777369,1738122639359,-500.0,0.00016896,2]
[350777371,1738122639370,-500.0,0.00016897,2]
[350777373,1738122639383,-500.0,0.00016897,2]
[350777375,1738122639396,-516.67740204,0.00016897,2]
[350777377,1738122639407,-500.0,0.00016897,2]
[350777380,1738122639419,-500.0,0.00016897,2]
[350777382,1738122639431,-500.0,0.00016897,2]
[350777384,1738122639442,-500.0,0.00016897,2]
[350777386,1738122639453,-500.0,0.00016897,2]
[350777388,1738122639464,-500.0,0.00016897,2]
[350777390,1738122639475,-500.0,0.00016897,2]
[350777393,1738122639486,-500.0,0.00016897,2]
[350777395,1738122639497,-500.0,0.00016897,2]
[350777397,1738122639508,-500.0,0.00016897,2]
[350777399,1738122639519,-500.0,0.00016897,2]
[350777401,1738122639529,-500.0,0.00016897,2]
[350777403,1738122639540,-500.0,0.00016897,2]
[350777405,1738122639550,-500.0,0.00016897,2]
[350777407,1738122639562,-172.93,0.00016897,2]
[350777409,1738122639573,-500.0,0.00016897,2]
[350777411,1738122639585,-500.0,0.00016897,2]
[350777414,1738122639595,-500.0,0.00016897,2]
[350777416,1738122639606,-500.0,0.00016897,2]
[350777418,1738122639617,-47.86424649,0.00016897,2]
[350777421,1738122639643,-1025.83,0.00016896,2]
[350777423,1738122639655,-452.13575351,0.00016897,2]
[350777425,1738122639666,-500.0,0.00016897,2]
[350777427,1738122639677,-329.05481026,0.00016897,2]
[350777430,1738122639689,-500.0,0.00016897,2]
[350777432,1738122639700,-1246.13,0.00016897,2]
[350777434,1738122639711,-500.0,0.00016897,2]
[350777436,1738122639722,-428.1464377,0.00016897,2]
[350777438,1738122639733,-500.0,0.00016897,2]
[350777440,1738122639744,-500.0,0.00016897,2]
[350777442,1738122639755,-1726.13,0.00016897,2]
[350777444,1738122639766,-500.0,0.00016897,2]
[350777446,1738122639777,-518.35284194,0.00016897,2]
[350777448,1738122639788,-530.91758376,0.00016897,2]
[350777450,1738122639800,-500.0,0.00016897,2]
[350777453,1738122639811,-156.39,0.00016897,2]
[350777455,1738122639821,-500.0,0.00016897,2]
[350777457,1738122639832,-500.0,0.00016897,2]
[350777459,1738122639842,-243.6,0.00016897,2]
[350777461,1738122639853,-500.0,0.00016897,2]
[350777463,1738122639864,-500.0,0.00016897,2]
[350777465,1738122639874,-500.0,0.00016897,2]
[350777467,1738122639888,-500.0,0.00016897,2]
[350777469,1738122639899,-512.29833037,0.00016897,2]
[350777471,1738122639912,-500.0,0.00016897,2]
[350777473,1738122639923,-500.0,0.00016897,2]
[350777476,1738122639934,-6277.49,0.00016897,2]
[350777478,1738122639944,-500.0,0.00016897,2]
[350777480,1738122639955,-500.0,0.00016897,2]
[350777482,1738122639966,-2021.84,0.00016897,2]
[350777484,1738122639977,-500.0,0.00016897,2]
[350777486,1738122639989,-500.0,0.00016897,2]
[350777488,1738122640001,-159.19931305,0.00016897,2]
[350777490,1738122640013,-500.0,0.00016897,2]
[350777492,1738122640025,-500.0,0.00016897,2]
[350777494,1738122640037,-1435.43,0.00016897,2]
[350777497,1738122640049,-1435.43,0.00016897,2]
[350777499,1738122640061,-560.04,0.00016897,2]
[350777501,1738122640072,-1435.43,0.00016897,2]
[350777503,1738122640084,-1435.43,0.00016897,2]
[350777505,1738122640094,-500.0,0.00016897,2]
[350777507,1738122640105,-500.0,0.00016897,2]
[350777509,1738122640115,-500.0,0.00016897,2]
[350777511,1738122640126,-504.43747251,0.00016897,2]
[350777513,1738122640140,-477.86313217,0.00016897,2]
[350777516,1738122640151,-500.0,0.00016897,2]
[350777518,1738122640162,-500.0,0.00016897,2]
[350777520,1738122640173,-500.0,0.00016898,2]
[350777522,1738122640184,-500.0,0.00016898,2]
[350777524,1738122640195,-500.0,0.00016898,2]
[350777526,1738122640206,-500.0,0.00016898,2]
[350777528,1738122640217,-500.0,0.00016898,2]
[350777531,1738122640228,-500.0,0.00016898,2]
[350777533,1738122640238,-500.0,0.00016898,2]
[350777535,1738122640250,-513.42683979,0.00016898,2]
[350777537,1738122640261,-507.56061264,0.00016898,2]
[350777539,1738122640271,-500.0,0.00016898,2]
[350777541,1738122640282,-500.0,0.00016898,2]
[350777543,1738122640292,-500.0,0.00016898,2]
[350777566,1738122640500,-500.0,0.00016898,2]
[350777569,1738122640521,-500.0,0.00016898,2]
[350777571,1738122640532,-500.0,0.00016898,2]
[350777573,1738122640543,-508.36467339,0.00016898,2]
[350777575,1738122640552,-500.0,0.00016898,2]
[350777577,1738122640563,-352.13636421,0.00016898,2]
[350777579,1738122640573,-503.86131488,0.00016898,2]
[350777581,1738122640583,-500.0,0.00016898,2]
[350777583,1738122640593,-312.58816733,0.00016898,2]
[350777585,1738122640603,-500.0,0.00016898,2]
[350777587,1738122640613,-502.46531401,0.00016898,2]
[350777589,1738122640623,-500.0,0.00016898,2]
[350777591,1738122640634,-500.0,0.00016898,2]
[350777593,1738122640644,-500.0,0.00016898,2]
[350777595,1738122640655,-500.0,0.00016898,2]
[350777597,1738122640664,-500.0,0.00016898,2]
[350777599,1738122640675,-500.0,0.00016898,2]
[350777601,1738122640684,-500.0,0.00016898,2]
[350777603,1738122640694,-505.18790813,0.00016898,2]
[350777605,1738122640704,-500.0,0.00016898,2]
[350777607,1738122640714,-500.0,0.00016898,2]
[350777609,1738122640724,-500.0,0.00016898,2]
[350777611,1738122640735,-500.0,0.00016898,2]
[350777613,1738122640745,-519.08332095,0.00016898,2]
[350777615,1738122640754,-500.0,0.00016898,2]
[350777617,1738122640764,-500.0,0.00016898,2]
[350777619,1738122640774,-500.0,0.00016898,2]
[350777621,1738122640784,-500.0,0.00016898,2]
[350777623,1738122640793,-500.0,0.00016898,2]
[350777626,1738122640806,-500.0,0.00016898,2]
[350777628,1738122640815,-500.0,0.00016898,2]
[350777630,1738122640825,-504.97129912,0.00016898,2]
[350777631,1738122640834,-345.81552156,0.00016898,2]
[350777633,1738122640844,-507.13190649,0.00016898,2]
[350777635,1738122640854,-500.0,0.00016898,2]
[350777637,1738122640863,-500.0,0.00016898,2]
[350777639,1738122640873,-501.2617691,0.00016898,2]
[350777641,1738122640886,-500.0,0.00016898,2]
[350777643,1738122640895,-500.0,0.00016898,2]
[350777645,1738122640906,-501.6280933,0.00016898,2]
[350777647,1738122640918,-502.34385912,0.00016898,2]
[350777649,1738122640928,-500.0,0.00016898,2]
[350777651,1738122640937,-500.0,0.00016898,2]
[350777653,1738122640946,-500.0,0.00016898,2]
[350777655,1738122640956,-503.30016218,0.00016898,2]
[350777657,1738122640966,-597.3066967,0.00016898,2]
[350777658,1738122640975,-500.0,0.00016898,2]
[350777660,1738122640984,-500.0,0.00016898,2]
[350777662,1738122640995,-502.01501609,0.00016898,2]
[350777664,1738122641004,-500.0,0.00016898,2]
[350777666,1738122641014,-504.58904564,0.00016898,2]
[350777668,1738122641023,-500.0,0.00016898,2]
[350777669,1738122641033,-500.0,0.00016898,2]
[350777671,1738122641042,-178.82496126,0.00016898,2]
[350777673,1738122641052,-504.70041048,0.00016898,2]
[350777675,1738122641061,-412.14330892,0.00016898,2]
[350777677,1738122641071,-500.0,0.00016898,2]
[350777679,1738122641080,-505.12134351,0.00016898,2]
[350777681,1738122641090,-500.0,0.00016898,2]
[350777683,1738122641100,-500.0,0.00016898,2]
[350777685,1738122641110,-500.0,0.00016898,2]
[350777687,1738122641120,-500.76924357,0.00016898,2]
[350777689,1738122641132,-500.46051436,0.00016898,2]
[350777691,1738122641141,-500.0,0.00016898,2]
[350777693,1738122641151,-500.0,0.00016898,2]
[350777695,1738122641161,-500.0,0.00016898,2]
[350777697,1738122641171,-500.0,0.00016898,2]
[350777699,1738122641181,-500.0,0.00016898,2]
[350777701,1738122641192,-502.06253822,0.00016898,2]
[350777703,1738122641201,-500.0,0.00016898,2]
[350777705,1738122641211,-518.2674131,0.00016898,2]
[350777707,1738122641221,-500.0,0.00016898,2]
[350777709,1738122641230,-300.0,0.00016898,2]
[350777711,1738122641240,-500.0,0.00016898,2]
[350777713,1738122641249,-500.0,0.00016898,2]
[350777715,1738122641263,-500.0,0.00016898,2]
[350777717,1738122641272,-500.0,0.00016898,2]
[350777718,1738122641282,-594.99271635,0.00016898,2]
[350777719,1738122641291,-500.0,0.00016898,2]
[350777720,1738122641301,-309.26836598,0.00016898,2]
[350777721,1738122641310,-501.90055716,0.00016898,2]
[350777722,1738122641319,-523.36402843,0.00016898,2]
[350777723,1738122641330,-503.92317133,0.00016898,2]
[350777724,1738122641340,-500.0,0.00016898,2]
[350777725,1738122641349,-500.0,0.00016898,2]
[350777726,1738122641359,-500.0,0.00016898,2]
[350777727,1738122641369,-500.0,0.00016898,2]
[350777728,1738122641383,-500.0,0.00016898,2]
[350777729,1738122641392,-500.0,0.00016898,2]
[350777730,1738122641403,-500.0,0.00016898,2]
[350777731,1738122641414,-500.0,0.00016898,2]
[350777732,1738122641424,-500.0,0.00016898,2]
[350777733,1738122641435,-500.0,0.00016898,2]
[350777735,1738122641445,-1000.0,0.00016898,2]
[350777737,1738122641455,-500.0,0.00016898,2]
[350777739,1738122641465,-500.0,0.00016898,2]
[350777741,1738122641475,-500.0,0.00016898,2]
[350777743,1738122641484,-500.0,0.00016898,2]
[350777745,1738122641494,-500.0,0.00016898,2]
[350777747,1738122641504,-500.0,0.00016898,2]
[350777749,1738122641513,-361.53350648,0.00016898,2]
[350777751,1738122641524,-500.0,0.00016898,2]
[350777753,1738122641534,-500.0,0.00016898,2]
[350777755,1738122641543,-500.0,0.00016898,2]
[350777757,1738122641553,-500.0,0.00016898,2]
[350777759,1738122641562,-500.0,0.00016898,2]
[350777761,1738122641571,-500.0,0.00016898,2]
[350777763,1738122641581,-500.0,0.00016898,2]
[350777765,1738122641591,-500.0,0.00016898,2]
[350777767,1738122641600,-500.0,0.00016898,2]
[350777769,1738122641610,-500.0,0.00016898,2]
[350777771,1738122641620,-500.0,0.00016898,2]
[350777773,1738122641631,-500.0,0.00016898,2]
[350777775,1738122641642,-500.0,0.00016898,2]
[350777777,1738122641652,-500.0,0.00016898,2]
[350777779,1738122641662,-278.10923148,0.00016898,2]
[350777781,1738122641673,-500.0,0.00016898,2]
[350777783,1738122641682,-500.0,0.00016898,2]
[350777785,1738122641691,-500.0,0.00016898,2]
[350777787,1738122641701,-500.0,0.00016898,2]
[350777789,1738122641711,-500.0,0.00016898,2]
[350777791,1738122641721,-500.0,0.00016898,2]
[350777793,1738122641730,-500.0,0.00016898,2]
[350777795,1738122641740,-500.0,0.00016898,2]
[350777797,1738122641750,-500.0,0.00016898,2]
[350777799,1738122641759,-500.0,0.00016898,2]
[350777801,1738122641770,-500.0,0.00016898,2]
[350777803,1738122641780,-152.56661509,0.00016898,2]
[350777805,1738122641789,-500.0,0.00016898,2]
[350777807,1738122641799,-500.0,0.00016898,2]
[350777809,1738122641809,-501.68359097,0.00016898,2]
[350777811,1738122641820,-500.0,0.00016898,2]
[350777813,1738122641829,-500.0,0.00016898,2]
[350777815,1738122641839,-500.0,0.00016898,2]
[350777817,1738122641849,-500.0,0.00016898,2]
[350777819,1738122641859,-500.0,0.00016898,2]
[350777821,1738122641868,-1435.43,0.00016977,2]
[350777823,1738122641880,-502.07514818,0.00016978,2]
[350777825,1738122641890,-622.7841006,0.00016978,2]
[350777827,1738122641900,-501.78949727,0.00016978,2]
[350777829,1738122641910,-502.83202262,0.00016978,2]
[350777831,1738122641923,-500.48843743,0.00016978,2]
[350777833,1738122641933,-498.62552245,0.00016978,2]
[350777835,1738122641943,-501.49813326,0.00016978,2]
[350777837,1738122641953,-500.0,0.00016978,2]
[350777839,1738122641964,-553.11222763,0.00016978,2]
[350777841,1738122641973,-502.16596267,0.00016978,2]
[350777843,1738122641982,-420.0,0.00017018,2]
[350777845,1738122641993,-500.0,0.00017032,2]
[350777847,1738122642003,-500.0,0.00017032,2]
[350777849,1738122642012,-664.26,0.00017032,2]
[350777851,1738122642023,-500.0,0.00017032,2]
[350777853,1738122642032,-500.0,0.00017032,2]
[350777855,1738122642041,-500.0,0.00017033,2]
[350777857,1738122642051,-500.0,0.00017033,2]
[350777859,1738122642060,-500.0,0.00017033,2]
[350777861,1738122642070,-500.0,0.00017033,2]
[350777863,1738122642080,-500.0,0.00017033,2]
[350777865,1738122642090,-737.85,0.00017033,2]
[350777867,1738122642099,-500.0,0.00017033,2]
[350777869,1738122642110,-500.0,0.00017033,2]
[350777872,1738122642120,-500.0,0.00017033,2]
[350777874,1738122642131,-500.0,0.00017033,2]
[350777876,1738122642141,-500.0,0.00017033,2]
[350777878,1738122642153,-500.0,0.00017033,2]
[350777880,1738122642163,-500.0,0.00017033,2]
[350777882,1738122642173,-1505.84,0.00017033,2]
[350777884,1738122642182,-500.0,0.00017033,2]
[350777886,1738122642191,-500.0,0.00017033,2]
[350777888,1738122642201,-500.0,0.00017033,2]
[350777890,1738122642210,-500.0,0.00017033,2]
[350777892,1738122642220,-523.67,0.00017033,2]